Cogmind - Beta 16 @@@ ROGUE MODE // 2025.11.26 @ 13:32:49 Player: Librarian Ape Result: Destroyed by Y-54 Guardian with Gatling Laser Performance ------------- Evolutions (3) 1500 Regions Visited (5) 1000 Robots Destroyed (80) 400 Value Destroyed (2581) 2581 Prototype IDs (21) 420 Alien Tech Used (0) 0 Bonus (55) 55 TOTAL SCORE: 5956 Bonus ------- Follower Combat Kills 55 Cogmind --------- Core Integrity 0/700 Matter 237/300 Energy 94/150 System Corruption 10% Temperature Cool (8) Movement Flying (315) Ox4 Location -7/Storage Parts ------- > --- POWER (1) -------- Micro Nuclear Core > --- PROPULSION (4) --- Improved VTOL Module > --- UTILITY (6) ------ Improved Signal Interpreter Core Analyzer Makeshift Light Armor Plating Improved Shield Generator System Shield > --- WEAPON (2) ------- Cooled Pulse Rifle Power Maul > --- INVENTORY (5) ---- Compact Matter Pod (81) Cooled Particle Cannon Cooled Particle Cannon Enhanced Autogun Enhanced Autogun Peak State ------------ > --- POWER ------------ Micro Nuclear Core > --- PROPULSION ------- Carbon-fiber Leg Carbon-fiber Leg Cargo Legs > --- UTILITY ---------- High-capacity Storage Unit Improved Signal Interpreter Seismic Detector Transmission Jammer Makeshift Light Armor Plating Improved Shield Generator System Shield > --- WEAPON ----------- Enhanced Autogun Spear > --- INVENTORY -------- Micro Nuclear Core Cesium-ion Thruster Xenon Bombardment Thruster Compact Matter Pod Weapon Cycler Transmission Jammer Advanced ECM Suite Makeshift Light Armor Plating High-powered Tractor Beam Enhanced Autogun Enhanced Autogun Flak Gun Proton Missile Launcher Heavy Missile Launcher Rocket Array Improved Datajack Multitool Power Maul Great Axe [Rating: 61] Favorites ----------- Power Light Ion Engine Engine Light Ion Engine Power Core Light Nuclear Core Propulsion Light Treads Treads Light Treads Leg Cargo Legs Flight Unit Improved VTOL Module Utility High-capacity Storage Unit Device Seismic Detector Storage High-capacity Storage Unit Processor Improved Signal Interpreter Hackware System Shield Protection Makeshift Light Armor Plating Weapon Light Cannon Energy Gun Cooled Pulse Rifle Energy Cannon Subdweller Beam Cannon Ballistic Gun Enhanced Autogun Ballistic Cannon Light Cannon Launcher Subdweller Shrapnel Launcher Special Weapon Mining Laser Impact Weapon Power Maul Piercing Weapon Spear Special Melee Weapon Datajack Build | -11 -10 -10 -8 -7 -7 ------- Run | Yrd Mat Sub Mat Fac Sto Slots Evolved 6 | . . . 4 2 . Power . | . . . . . . Propulsion 2 | . . . 2 . . Utility 4 | . . . 2 2 . Weapon . | . . . . . . Parts Attached 82 | 8 11 13 14 31 5 Power 10 | 1 2 2 1 4 . Engine 4 | 1 2 1 . . . Core 6 | . . 1 1 4 . Reactor . | . . . . . . Propulsion 16 | 2 1 2 4 6 1 Treads 4 | 2 1 1 . . . Leg 7 | . . 1 4 2 . Wheel . | . . . . . . Hover . | . . . . . . Flight 5 | . . . . 4 1 Utility 27 | 2 2 6 4 11 2 Device 9 | 1 . 3 . 5 . Storage 4 | 1 2 . . . 1 Processor 5 | . . 1 2 1 1 Hackware 4 | . . . 2 2 . Protection 5 | . . 2 . 3 . Artifact . | . . . . . . Weapon 29 | 3 6 3 5 10 2 Energy Gun 1 | . . . . . 1 Energy Cannon 3 | . . 1 1 1 . Ballistic Gun 13 | 3 2 1 2 5 . Ballistic Cannon 3 | . 3 . . . . Launcher 3 | . . 1 . 1 1 Special Weapon 2 | . 1 . . 1 . Impact Weapon 2 | . . . 1 1 . Slashing Weapon . | . . . . . . Piercing Weapon 1 | . . . . 1 . Special Melee Weapon 1 | . . . 1 . . Unidentified Prototypes 2 | . . . . 1 1 Parts Lost 32 | . . 6 . 19 7 Power 5 | . . 2 . 3 . Propulsion 10 | . . 2 . 4 4 Utility 10 | . . 1 . 7 2 Weapon 7 | . . 1 . 5 1 Highest Loss Streak 5 | . . 3 . 4 5 To Critical Strikes . | . . . . . . Average Backups 17 | 4 17 18 18 18 4 Power 1 | 1 2 . 2 1 . Propulsion 2 | 2 3 2 1 2 . Utility 8 | . 7 10 7 6 1 Weapon 4 | 1 2 4 5 6 2 Tool/Special . | . . . . . . Unused Backups 28 | . 2 5 6 13 2 Power 1 | . . . 1 . . Propulsion 6 | . 1 2 2 1 . Utility 12 | . 1 2 3 6 . Weapon 8 | . . 1 . 5 2 Tool/Special 1 | . . . . 1 . Average Slot Usage (%) 93 | . 100 94 89 87 91 Engine 6 | . 14 9 . . . Core 3 | . . 3 7 6 7 Treads 15 | . 28 22 8 . . Leg 6 | . . 2 13 17 . Device 11 | . 14 8 15 12 7 Storage 10 | . 14 13 7 6 . Processor 6 | . . 6 11 9 14 Hackware 4 | . . . 10 14 12 Protection 2 | . . 2 . 5 5 Energy Cannon 4 | . . 7 7 1 . Ballistic Gun 7 | . 14 4 4 7 9 Ballistic Cannon 7 | . 9 12 . . . Special Weapon 1 | . 3 . . 1 . Peak Build Rating 61 | 8 9 29 48 61 49 Average Rating 26 | 5 8 15 42 54 44 On Entrance 23 | . 8 9 29 48 49 Avg Prop Armor Cover (%) 15 | . . . 16 6 . Naked Turns . | . . . . . . Heaviest Build 64 | 13 52 56 63 64 21 Greatest Support 87 | 40 40 55 87 87 21 Greatest Overweight (x) 4 | . 1 1 1 3 4 Average Overweight (x) . | . . . . . . Largest Inventory Capacity 20 | 8 20 20 20 20 5 Average Capacity 19 | 7 18 20 20 19 5 Most Carried 20 | 8 20 20 20 20 5 Average Carried 18 | 4 17 19 19 18 4 Final Capacity 20 | 8 20 20 20 5 5 Final Carried 20 | 8 20 20 20 5 5 Class Distribution -------------------- 71% | Mutant 22% | Hacker-Mutant 3% | Skirmisher Dominant Class ---------------- Mutant | -10/Materials Mutant | -10/Subcaves Hacker-Mutant | -8/Materials Hacker-Mutant | -7/Factory Hacker-Sprinter | -7/Storage Resources | -11 -10 -10 -8 -7 -7 ----------- Run | Yrd Mat Sub Mat Fac Sto Matter Collected 2609 | 316 422 328 584 782 177 Remotely . | . . . . . . Salvage Created 3018 | 112 588 132 815 1086 285 Parts 185 | 9 34 18 36 68 20 Haulers Intercepted 7 | . 2 . 3 1 1 Recyclers Shooed 1 | . 1 . . . . Parts Field Recycled . | . . . . . . Retrieved Matter . | . . . . . . Parts Self-Destructed 23 | . . 23 . . . Prevented . | . . . . . . Parts Restored . | . . . . . . Kills | -11 -10 -10 -8 -7 -7 ------- Run | Yrd Mat Sub Mat Fac Sto Combat Hostiles Destroyed 61 | . 10 12 13 21 5 Melee 7 | . . . . 7 . Guns 32 | . 10 3 7 10 2 Cannons 13 | . . 5 6 2 . AOE 8 | . . 4 . 1 3 Classes Destroyed 13 | 2 4 2 2 2 1 Builder 1 | . . . . . 1 Tunneler 2 | 2 . . . . . Hauler 7 | . 2 . 3 1 1 Recycler 3 | 1 1 . . 1 . Turret 1 | . . 1 . . . Watcher 5 | . 2 . 1 . 2 Swarmer 19 | . 3 7 . 6 3 Grunt 19 | . 7 . 9 2 1 Brawler 1 | . . . 1 . . Sentry 8 | . . . 3 4 1 Hunter 3 | . . . . 3 . Programmer 6 | . . . . 6 . Subdweller 5 | . . 5 . . . Best Kill Streak 9 | 2 4 5 5 3 9 Combat Bots Only 4 | . 3 4 3 3 4 Max Kills in Single Turn 3 | 1 2 2 2 2 3 Gunslinging 1 | . . . . 1 . Exploded 3 | . . 1 . 1 3 Melee 1 | . . . . 1 . Uniques/NPCs Destroyed . | . . . . . . Combat | -11 -10 -10 -8 -7 -7 -------- Run | Yrd Mat Sub Mat Fac Sto Hostile Shots Fired 714 | . 76 121 67 286 164 Missed 227 | . 25 35 17 81 69 Hits 487 | . 51 86 50 205 95 Projectile 487 | . 51 86 50 205 95 Critical Strikes 10 | . . 3 1 6 . Damage Taken 6251 | . 581 1087 793 2810 980 Core 1069 | . 100 94 175 490 210 Absorbed by Shields 120 | . . . . 6 114 Redirected to Shielding 269 | . . . . 269 . Regen/Repaired (Parts) 410 | . 257 . . . 153 Core Remaining (%) 63 | 100 . 22 68 . . Volleys Fired 250 | 6 50 44 53 75 22 Largest 2 | 2 2 2 2 2 2 Hottest 110 | 40 100 110 110 105 50 Shots Fired 445 | 12 98 88 97 113 37 Gun 313 | 12 96 22 46 101 36 Cannon 122 | . . 62 51 9 . Launcher 7 | . . 4 . 2 1 Special 3 | . 2 . . 1 . Kinetic 369 | 12 96 79 46 101 35 Thermal 73 | . 2 9 51 10 1 Explosive 1 | . . . . . 1 Electromagnetic 2 | . . . . 2 . Robot Hit Streak 30 | 4 17 8 30 18 12 Robot Miss Streak 7 | 2 6 6 4 7 7 Penetration Max . | . . . . . . Secondary Targets 2 | . 1 . . 1 . Max Gunslinging Chain 1 | . 1 . . 1 . Shots Hit Robots 292 | 6 56 35 71 102 22 Core Hits 135 | 3 25 19 30 42 16 Critical Kills 1 | . 1 . . . . Critical Parts Destroyed 3 | . 1 . 1 . 1 Critical Strikes 12 | . 2 . 1 8 1 Destroy 3 | . 2 . 1 . . Smash 1 | . . . . . 1 Impale 8 | . . . . 8 . Melee Attacks 35 | . . . 1 31 3 Impact 5 | . . . 1 1 3 Slashing . | . . . . . . Piercing 30 | . . . . 30 . Sneak Attacks 1 | . . . . . 1 Combat Hostiles . | . . . . . . Follow-up Attacks . | . . . . . . Damage Inflicted 6628 | 71 767 1127 1603 2239 821 Guns 3571 | 71 767 323 811 1183 416 Cannons 1384 | . . 407 792 185 . Explosions 754 | . . 397 . 118 239 Melee 915 | . . . . 749 166 Ramming . | . . . . . . Kinetic 4330 | 71 767 1102 811 1183 396 Thermal 1026 | . . 25 792 189 20 Explosive 239 | . . . . . 239 Electromagnetic 118 | . . . . 118 . Impact 166 | . . . . . 166 Slashing . | . . . . . . Piercing 749 | . . . . 749 . Highest Corruption 10 | . . . . 10 10 Average Corruption 7 | . . . . 7 10 Corruption Purged . | . . . . . . Corruption Blocked . | . . . . . . Effects 51 | . . . . 42 9 Message Errors 14 | . . . . 11 3 Matter Fused 12 | . . . . 11 1 Heat Flow Errors 7 | . . . . 6 1 Energy Discharges 2 | . . . . 2 . Parts Rejected 1 | . . . . 1 . Parts Fused 1 | . . . . 1 . Data Loss (minor) 3 | . . . . 3 . Data Loss (major) 5 | . . . . 5 . Misfires 2 | . . . . 1 1 Alerts 1 | . . . . 1 . Misdirections 3 | . . . . . 3 Overload Shots . | . . . . . . Overflow Damage 284 | . . 33 10 94 147 Projectiles 10 | . . . 10 . . Explosions 39 | . . 33 . . 6 Melee 235 | . . . . 94 141 Knockbacks 5 | . . 5 . . . Impact . | . . . . . . Kinetic 5 | . . 5 . . . Secondary . | . . . . . . Self-Inflicted Damage 89 | . . 44 . . 45 Shots 2 | . . 1 . . 1 Rammed . | . . . . . . Targets Rammed . | . . . . . . Kicked . | . . . . . . Crushed . | . . . . . . Highest Temperature 333 | . 20 . 333 234 211 Average Temperature 89 | . 6 . 111 50 104 Received Heat Transfer 1409 | . 252 228 423 264 242 Effects 3 | . . . 3 . . Interference 3 | . . . 3 . . Siege Activations . | . . . . . . Martial Activations . | . . . . . . Shielding Activations . | . . . . . . Robots Disrupted . | . . . . . . Combat Hostiles . | . . . . . . Robots Corrupted . | . . . . . . Combat Hostiles . | . . . . . . Parts Fried 1 | . . . . 1 . Impact Corruptions 2 | . . . . . 2 Robots Melted . | . . . . . . Combat Hostiles . | . . . . . . Parts Melted . | . . . . . . Heat Transferred 1727 | . . 37 1332 321 37 Parts Sabotaged . | . . . . . . Parts Stolen . | . . . . . . Parts Stripped . | . . . . . . Power Chain Reactions . | . . . . . . Alert | -11 -10 -10 -8 -7 -7 ------- Run | Yrd Mat Sub Mat Fac Sto Maximum Alert Level 1 | . . . 1 . . Low Security (%) 99 | 100 100 . 94 100 100 Level 1 . | . . . 5 . . Level 2 . | . . . . . . Level 3 . | . . . . . . Level 4 . | . . . . . . Level 5 . | . . . . . . High Security . | . . . . . . Max Security . | . . . . . . Peak Influence 218 | 5 115 . 218 126 114 Initial 74 | . . . 40 74 44 Average 39 | 1 17 . 79 42 37 Influence Increases 1944 | 15 325 215 430 706 253 Destroy 0b10 Robot/C 1180 | . 200 160 260 420 140 Destroy 0b10 Robot/NC 90 | 15 25 . 20 10 20 Destroy Leader 304 | . 38 10 68 152 36 Allied During Kill 34 | . . . . . 34 Successful Hack 137 | . 15 . 21 92 9 Select Force Hacks 30 | . 30 . . . . Disable Machine 75 | . 15 . 30 30 . Destroy Structure 19 | . 2 . 1 2 14 Lose Combat Pursuer 75 | . . 45 30 . . Influence Decreases 1944 | 15 297 165 343 773 351 Entered New Map 197 | . . 14 38 91 54 Time Decay 1360 | 15 297 141 295 515 97 Lost Part 227 | . . 10 . 167 50 Lost Ally 160 | . . . 10 . 150 Squads Dispatched 12 | . 1 . 1 7 3 Investigation 3 | . 1 . . 2 . Extermination 5 | . . . . 5 . Reinforcement 2 | . . . 1 . 1 Assault 2 | . . . . . 2 Garrison . | . . . . . . Intercept . | . . . . . . Searches Triggered . | . . . . . . Construction Impeded . | . . . . . . Haulers Reinforced 1 | . . . . . 1 Active Scanning Responses . | . . . . . . Cargo Convoy Interrupts . | . . . . . . Stealth | -11 -10 -10 -8 -7 -7 --------- Run | Yrd Mat Sub Mat Fac Sto Distress Signals 7 | . 2 . 4 1 . Communications Jammed 12 | . . . . 1 11 Distress Signals 11 | . . . . . 11 Times Spotted 100 | . 16 16 21 30 17 Peak Tracking Total 9 | . 4 6 8 4 9 Tactical Retreats 6 | . . 3 2 1 . ECM-based Alert Blocks 2 | . . . . 2 . Traps | -11 -10 -10 -8 -7 -7 ------- Run | Yrd Mat Sub Mat Fac Sto Traps Triggered 3 | . 1 . . 2 . Indirectly . | . . . . . . Trap Hack Attempts . | . . . . . . Triggered . | . . . . . . Disarmed . | . . . . . . Reprogrammed . | . . . . . . Reused . | . . . . . . Traps Extracted . | . . . . . . Installed . | . . . . . . Triggered . | . . . . . . Machines | -11 -10 -10 -8 -7 -7 ---------- Run | Yrd Mat Sub Mat Fac Sto Machines Disabled 10 | . 1 5 2 2 . Max in Single Turn 2 | . 1 2 1 2 . Garrison Access 1 | . . . . 1 . Machines Repaired . | . . . . . . Machines Dismantled . | . . . . . . Machines Sabotaged . | . . . . . . Overloaded Fab Kills . | . . . . . . Hacking | -11 -10 -10 -8 -7 -7 --------- Run | Yrd Mat Sub Mat Fac Sto Machines Accessed 32 | . 8 2 8 10 4 Terminals 20 | . 6 . 7 5 2 Fabricators 2 | . . . . 2 . Repair Stations 3 | . 1 . . . 2 Recycling Units 2 | . 1 . 1 . . Scanalyzers 1 | . . . . 1 . Garrison Access 2 | . . . . 2 . Total Hacks 107 | . 29 12 32 24 10 Successful 66 | . 17 12 21 10 6 Failed 41 | . 12 . 11 14 4 Catastrophic 9 | . 1 . 1 6 1 Database Lockouts . | . . . . . . Manual 48 | . 17 . 22 8 1 Terminals 65 | . 22 . 31 9 3 Fabricators 9 | . . . . 9 . Repair Stations 13 | . 6 . . . 7 Recycling Units 2 | . 1 . 1 . . Scanalyzers 2 | . . . . 2 . Garrison Access 4 | . . . . 4 . Terminal Hacks 27 | . 4 12 9 2 . Record 12 | . . 11 1 . . Part Schematic 1 | . . . . 1 . Robot Analysis 4 | . 1 . 3 . . Prototype ID Bank 4 | . 1 . 3 . . Terminal Index 2 | . 1 . 1 . . Locate Traps 1 | . 1 . . . . Recall Extermination 1 | . . . . 1 . Hauler Manifests 1 | . . . 1 . . Proto ID Catalog 1 | . . 1 . . . Fabricator Hacks 4 | . . . . 4 . Load Schematic 2 | . . . . 2 . Build 2 | . . . . 2 . Repair Station Hacks 9 | . 4 . . . 5 Scan Component 5 | . 2 . . . 3 Repair 4 | . 2 . . . 2 Recycling Unit Hacks 1 | . . . 1 . . Report Inventory 1 | . . . 1 . . Scanalyzer 2 | . . . . 2 . Insert Component 1 | . . . . 1 . Analyze 1 | . . . . 1 . Garrison Access Hacks 1 | . . . . 1 . Seal Access 1 | . . . . 1 . Unauthorized Hacks 22 | . 9 . 11 1 1 Terminals 21 | . 8 . 11 1 1 Assimilate 6 | . 1 . 3 1 1 Botnet 3 | . 1 . 2 . . Operators 2 | . 1 . 1 . . Skim 10 | . 5 . 5 . . Fabricators . | . . . . . . Repair Stations . | . . . . . . Recycling Units 1 | . 1 . . . . Tunnel 1 | . 1 . . . . Scanalyzers . | . . . . . . Garrison Access . | . . . . . . Data Cores Recovered . | . . . . . . Used . | . . . . . . Hacking Detections 21 | . 6 . 4 7 4 Full Trace Events 3 | . 1 . . 2 . Feedback Events . | . . . . . . Feedback Blocked . | . . . . . . Robot Schematics Acquired . | . . . . . . Robots Built . | . . . . . . Authchips . | . . . . . . Time . | . . . . . . Total Robot Build Rating . | . . . . . . Part Schematics Acquired 2 | . . . . 2 . Parts Built 2 | . . . . 2 . Authchips . | . . . . . . Time 174 | . . . . 174 . Total Part Build Rating 6 | . . . . 6 . Part Studies Acquired . | . . . . . . Parts Repaired 4 | . 2 . . . 2 Time 140 | . 52 . . . 88 Parts Recycled . | . . . . . . Recycled Matter . | . . . . . . Retrieved Matter . | . . . . . . Retrieved Components . | . . . . . . Parts Scanalyzed 1 | . . . . 1 . Part Schematics Acquired 1 | . . . . 1 . Parts Damaged . | . . . . . . Bothacking | -11 -10 -10 -8 -7 -7 ------------ Run | Yrd Mat Sub Mat Fac Sto Used RIF Installer . | . . . . . . Robots Hacked . | . . . . . . Non-combat . | . . . . . . Combat . | . . . . . . Robot Hacks Applied . | . . . . . . Relay Couplers Released . | . . . . . . Fabnet Peak Effective % . | . . . . . . Robots Rewired . | . . . . . . Allies Hacked . | . . . . . . Hacks Repelled . | . . . . . . Allies | -11 -10 -10 -8 -7 -7 -------- Run | Yrd Mat Sub Mat Fac Sto Total Allies 15 | . . . 1 1 13 Largest Group 11 | . . . 1 1 11 Highest-Rated Group 219 | . . . 10 26 219 Highest-Rated Ally 31 | . . . 10 26 31 Total Orders . | . . . . . . Ally Attacks 38 | . . . . . 38 Total Damage 544 | . . . . . 544 Kills 2 | . . . . . 2 Allies Corrupted . | . . . . . . Allies Melted . | . . . . . . Intel | -11 -10 -10 -8 -7 -7 ------- Run | Yrd Mat Sub Mat Fac Sto Active Infowar (turns) 7201 | 55 1771 2106 927 2181 161 Sensors 1793 | . . 808 858 127 . Terrain 801 | . . 801 . . . Seismic 6113 | 55 1771 1305 927 2055 . Machine Analysis 497 | . . . 497 . . Jamming 1219 | . . . . 1058 161 ECM 12 | . . . . 12 . Robot Analysis Total 4 | . 1 . 3 . . Derelict Logs Recovered 1 | . . 1 . . . Drone Launches . | . . . . . . Drone Recoveries . | . . . . . . Exploration | -11 -10 -10 -8 -7 -7 ------------- Run | Yrd Mat Sub Mat Fac Sto Turns Passed 9430 | 153 1771 4081 927 2250 248 Spaces Moved 4455 | 75 575 1768 347 1516 174 Core 4 | 4 . . . . . Treads 1796 | 71 575 1150 . . . Legs 2357 | . . 618 347 1392 . Wheels . | . . . . . . Hover . | . . . . . . Flight 298 | . . . . 124 174 Fastest Speed 26 | 50 160 130 123 27 26 Average Speed 163 | 154 218 201 138 116 49 Slowest Speed 330 | 160 240 240 200 330 315 Overloaded Moves . | . . . . . . Propulsion Burnouts . | . . . . . . Robots Hopped 3 | . . . . 3 . Potential Cave-ins . | . . . . . . Cave-ins Triggered . | . . . . . . Exploration Rate (%) 42 | 5 80 58 33 38 41 Regions Visited 5 Branch Regions 2 Pre-discovered Areas 5 | . 2 1 2 . . Known Exits Taken 4 | . 1 1 1 1 . Unknown Exits Taken 1 | 1 . . . . . Scrap Searched . | . . . . . . Spaces Dug 6 | . 1 3 1 1 . Terrain Destroyed 63 | . 1 48 1 1 12 Melee 2 | . . . 1 1 . Projectile 4 | . 1 3 . . . AOE 57 | . . 45 . . 12 Terrain Rammed . | . . . . . . Walls Destroyed . | . . . . . . Machines Disabled . | . . . . . . Actions | -11 -10 -10 -8 -7 -7 --------- Run | Yrd Mat Sub Mat Fac Sto Total 6144 | 97 989 2200 695 1857 306 Wait 1158 | 1 322 343 250 154 88 Move 4445 | 74 574 1767 346 1510 174 Hop 2 | . . . . 2 . Pick Up 84 | 7 18 15 13 27 4 Fast Attach 19 | 8 . 1 . 6 4 Attach 34 | . . 8 6 18 2 Detach 6 | 1 . 3 1 . 1 Swap 52 | . 13 8 13 16 2 Drop 55 | . 12 11 12 17 3 Fire 250 | 6 50 44 53 75 22 Melee 35 | . . . 1 31 3 Ram . | . . . . . . Kick . | . . . . . . Crush . | . . . . . . Escape Stasis . | . . . . . . Rewire 3 | . . . . . 3 Trap . | . . . . . . Miscellaneous 1 | . . . . 1 . Route ------- -11/Scrapyard -10/Materials (discovered 5 exits: *Mat x2 / [*Min x2] / *Sub) -10/Subcaves (discovered 2 exits: *Mat / *Rec) -8/Materials (discovered 3 exits: *Fac x3) -7/Factory (discovered 4 exits: *Sto x2 / *Low x2) -7/Storage (discovered 1 exit: Fac) History --------- Turn | Location | Event 25 | -11/Scrapyard | Discovered new exit (range 15) 154 | -11/Scrapyard | Entered Materials 302 | -10/Materials | Build established: Mutant 311 | -10/Materials | Discovered new exit (range 13) 465 | -10/Materials | Discovered new exit (range 11) 805 | -10/Materials | Discovered new exit (range 16) 940 | -10/Materials | Repaired Lgt. Treads 968 | -10/Materials | Repaired Lgt. Treads 1211 | -10/Materials | Identified exit to Subcaves 1281 | -10/Materials | Learned location of 1 exit from Storage 1390 | -10/Materials | Loaded intel: 1 repair station location 1428 | -10/Materials | Learned Storage trap positions 1471 | -10/Materials | Identified exit to Materials 1498 | -10/Materials | Loaded intel: 24 non-interactive machine locations 1583 | -10/Materials | Loaded intel: 11 interactive machine locations 1925 | -10/Materials | Entered Subcaves 1926 | -10/Subcaves | Approached by a straggling Scientist 1962 | -10/Subcaves | Core integrity fell below 50% 2224 | -10/Subcaves | Visited Clippyterm 2232 | -10/Subcaves | Learned Factory garrison access intel 2364 | -10/Subcaves | Shifting Twisted Machinery released Mak. Kinetic Plating 2375 | -10/Subcaves | Shifting Twisted Machinery released Sub. Machine Gun 2407 | -10/Subcaves | Shifting Twisted Machinery released Scrap Shield 2422 | -10/Subcaves | Shifting Twisted Machinery released Mak. Light Armor Plating 3102 | -10/Subcaves | Learned location of Zion (-6) 3102 | -10/Subcaves | Met a Zionite searching for "candidates" 3144 | -10/Subcaves | A swath of the cavern ceiling suddenly collapsed 3928 | -10/Subcaves | Discovered new exit (range 3) 4030 | -10/Subcaves | Identified exit to Materials 4914 | -10/Subcaves | Lost 3 parts (1p2n) 5035 | -10/Subcaves | Learned Materials security intel 5141 | -10/Subcaves | Visited 4L-MR0's lab 5195 | -10/Subcaves | Found Cargo Legs 5196 | -10/Subcaves | Attached Cargo Legs, gained temporary slots: Utility x2 5302 | -10/Subcaves | Discovered new exit (range 16) 5692 | -10/Subcaves | Identified exit to Recycling 6006 | -10/Subcaves | Entered Materials 6006 | -8/Materials | Evolved 4 slots: Propulsion x2, Utility x2 6695 | -8/Materials | Learned 2 Storage zone layouts 6754 | -8/Materials | Identified exit to Factory 6804 | -8/Materials | Learned Storage garrison access intel 6822 | -8/Materials | Build established: Hacker-Mutant 6844 | -8/Materials | Learned location of Extension (-5) 6933 | -8/Materials | Entered Factory 6933 | -7/Factory | Evolved 2 slots: Utility x2 6934 | -7/Factory | Identified exit to Storage 6935 | -7/Factory | Loaded intel: 4 garrison access locations 7151 | -7/Factory | Lost 4 parts (1p1u2w) 7688 | -7/Factory | Discovered new exit (range 6) 7694 | -7/Factory | Identified exit to Lower Caves 7828 | -7/Factory | Found Prototype Launcher 7876 | -7/Factory | Lost 3 parts (1u2w) 7932 | -7/Factory | Lost 3 parts (1p1n1u) 8123 | -7/Factory | Build established: Mutant 8341 | -7/Factory | Discovered exit to Lower Caves (range 5) 8680 | -7/Factory | Build established: Hacker-Mutant 8796 | -7/Factory | Core integrity fell below 50% 8802 | -7/Factory | System corruption reached 10% 9058 | -7/Factory | Fabricated Imp. VTOL Module? 9096 | -7/Factory | Fabricated Imp. VTOL Module? 9183 | -7/Factory | Entered Storage 9184 | -7/Storage | Identified exit to Factory 9186 | -7/Storage | Loaded intel: 12 trap records 9231 | -7/Storage | Repaired Mak. Light Armor Plating 9277 | -7/Storage | Repaired Imp. Shield Generator 9348 | -7/Storage | Core integrity fell below 20% 9376 | -7/Storage | Assisted by bots powering up and referring to "LRC-V3" 9388 | -7/Storage | Met a pair of Derelict thieves 9405 | -7/Storage | Lost 5 parts (2n2u1w) 9431 | -7/Storage | Destroyed by Y-54 Guardian with Gatling Laser Last Messages --------------- 09400_ K-01 Serf collects debris. 09400_ K-01 Serf cleans the Door Terminal. 09401_ Trooper 4i destroyed. 09403_ K-01 Serf collects debris. 09406_ Y-54 Guardian heat short circuits Lgt. Treads. 09406_ Trooper 4a destroyed. 09406_ K-01 Serf collects debris. 09409_ VTOL Module destroyed. 09410_ Y-54 Guardian heat damages Broken Lgt. Treads. 09410_ K-01 Serf collects debris. 09411_ Y-54 Guardian heat damages core (-9). 09412_ RWWIPX|UUZZ|WQZUW YR%50 09412_ K-01 Serf collects debris. 09414_ K-01 Serf cleans the Heavy Doors. 09416_ K-01 Serf collects debris. 09423_ DD-9QW(g) destroyed. 09424_ R-06 Scavenger collects Imp. Terrain Scan Processor. 09424_ M-28 Smith repairs Y-54 Guardian. 09428_ A-02 Transporter destroyed. 09428_ Imp. VTOL Module destroyed. Map ----- +----------------------------------------------------+ | ???## #"*"####???????????????????????????????????? | | ???# ! [ #???########????????????????????????? | | ???# "" #???# #????????????????????????? | | ???# """ !! #???# #????????????????????????? | | ???# "R !! #???# #????????????????????????? | | ???# """ ! ##### #????????????????????????? | | ???# """ # + #????????????????????????? | | ???# # # #??#?????????????????????? | | ???# + #??#?????????????????????? | | #######+###### #??#?????????????????????? | | =*+%[ #??#?????????????????????? | | ##### !%|*% ##?#?????????????????????? | | #???# =!% #?#?????????????????????? | | ###### #???# ##?#?????????????????????? | | ## #???# #?###+###????????????????? | | # #???# ########## #????????????????? | | ## #???# !! "" #????????????????? | | ## #???# !%! T #????????????????? | | ## #???# !! *[[! #????????????????? | | +##### #???# #####+####%*== #????????????????? | | = ! #???# ## ##%!!##????????????????? | | * #???# ## Yk ##=%%#?????????????????? | | %= #???# ## t % ##%*=######????????????? | | +#########???# ## /= ##%*!##T #????????????? | | ?? #????????# ##! ==##=*%# #????????????? | | """ #????????# ## @##[=[+ #????????????? | | """ ##???????# #### ##=* # #????????????? | | """ #?????### #??# ## ## #????????????? | | ######## # #??# ## =######????????????? | | """ #?# # #??# / Y *%#?????????????????? | | """ #?# # #### ####+####??????????????? | | """ #?# + ############ #??????????????? | | ? #?# """ #### ###########T #??????????????? | | #??##?# """ #??# # #####" "##??????????????? | | ??? #?# """ #??# + T ### !#??????????????? | | ??? #?########??# # ###] #??????????????? | | ??? ############# # ## [[#??????????????? | | ??? + + ###] [#??????????????? | | ??? ############# # ##########??????????????? | | ??? #??#"""""#??# ##########?????????????????????? | | ??? ####""T""#### #?# #??????????????????????? | | ??? ## ## #?# ##?????????????????????? | | ??? ## """"""" ## #?# ""?????????????????????? | | ???+## """Y""" + #?# ""?????????????????????? | | ?????????????????????????????????????????????????? | | ??????^??????????????????????????????????????????? | | ?????????????????????????????????????????????????? | | ?????????????????????????????????????????????????? | | ?????????????????????????????????????????????????? | | ?????????????????????????????????????????????????? | +----------------------------------------------------+ Best States ------------- Heat Dissipation 48 Energy Generation 15 Energy Capacity 250 Matter Stores 328 Matter Capacity 450 Sight Range 16 Robot Scan Range 14 Terrain Scan Range 16 Terrain Scan Density 10 ECM Strength 2 Jamming Range 12 Armor Coverage 200 Propulsion Shielding 66 Evasion (%) 64 Targeting Accuracy 6 Core Analysis 6 Recoil Reduction 2 Offensive Hacking 10 Defensive Hacking 21 Item Schematics ----------------- Enh. Autogun | -7/Factory | Scanalyzed Imp. VTOL Module | -7/Factory | Hacked Robot Schematics ------------------ None Fabricated ------------ Imp. VTOL Module | x1 | -7/Factory Imp. VTOL Module | x1 | -7/Factory Repaired ---------- Lgt. Treads | 1% | -10/Materials Lgt. Treads | 15% | -10/Materials Mak. Light Armor Plating | 58% | -7/Storage Imp. Shield Generator | 27% | -7/Storage Studied --------- None Alien Tech Used ----------------- None Achievements -------------- Mistaken Identity Challenges ------------ None Game ------ Seed SpikedWarpTreads Manual? 0 Play Time 02:07:20 Cumulative 51.9 hours Start 2025.11.26 @ 10:57:04 End 2025.11.26 @ 13:32:49 Sessions 1 Manual Loads 0 Difficulty Rogue Special Mode None Game No. 74 Rogue 74 Adventurer 0 Explorer 0 Win Type - Total 1 Types 1/0/0/0/0/0/0/0/0/0 Lore% 41 Gallery% 35 Achievement% 31 Wizard Run 0 Options --------- Layout 0 ASCII 0 Keyboard 0 Movement Mouse Keybinds 0 Fullscreen 2 Font 24/Crisp Map View 76x50 Zoom Use 0% Tactical HUD 1 Map Filters NONE Filters NONE Steam 1 RUN: 907313e4-6cfb-4d54-9572-cc90c07a90cb